fUST/lending_fUST_20241029
["ID","MTS","AMOUNT","RATE_DAILY","PERIOD"]
[340986956,1730214642641,-546.0,0.00023279,3]
[340986957,1730214642651,-151.0,0.00023279,7]
[340986958,1730214642660,-500.0,0.00023279,3]
[340986959,1730214642670,-500.0,0.00023279,3]
[340986960,1730214642680,-500.0,0.00023279,3]
[340986961,1730214642689,-500.0,0.00023279,3]
[340986962,1730214642699,-500.0,0.00023279,3]
[340986963,1730214642709,-7111.02,0.00023279,3]
[340986964,1730214642722,-781.5,0.00023279,3]
[340986965,1730214642731,-489.68675333,0.0002328,3]
[340986966,1730214642740,-373.8766263,0.0002328,3]
[340986967,1730214642750,-500.0,0.0002328,3]
[340986968,1730214642762,-500.0,0.0002328,3]
[340986969,1730214642772,-500.0,0.0002328,3]
[340986970,1730214642782,-321.30540154,0.0002328,3]
[340986971,1730214642793,-500.0,0.0002328,3]
[340986972,1730214642802,-601.43893455,0.0002328,3]
[340986973,1730214642811,-500.0,0.0002328,3]
[340986974,1730214642821,-500.0,0.0002328,3]
[340986975,1730214642831,-500.0,0.0002328,3]
[340986976,1730214642840,-500.0,0.0002328,3]
[340986977,1730214642850,-500.0,0.0002328,3]
[340986978,1730214642859,-500.0,0.0002328,3]
[340986979,1730214642868,-199.228734,0.0002328,7]
[340986980,1730214642880,-500.0,0.0002328,3]
[340986981,1730214642890,-500.0,0.0002328,3]
[340986982,1730214642899,-500.0,0.0002328,3]
[340986983,1730214642908,-151.0,0.0002328,7]
[340986984,1730214642922,-500.0,0.0002328,3]
[340986985,1730214642934,-500.0,0.0002328,3]
[340986986,1730214642949,-600.97,0.0002328,3]
[340986987,1730214642962,-500.0,0.0002328,3]
[340986988,1730214642975,-500.0,0.0002328,3]
[340986989,1730214642986,-500.0,0.0002328,3]
[340986990,1730214642998,-500.0,0.0002328,3]
[340986991,1730214643010,-500.0,0.00023281,3]
[340986992,1730214643022,-500.0,0.00023281,3]
[340986993,1730214643034,-500.0,0.00023281,3]
[340986994,1730214643049,-368.70712693,0.00023281,3]
[340986995,1730214643061,-256.46527456,0.00023281,3]
[340986996,1730214643074,-151.0,0.00023281,7]
[340986997,1730214643086,-500.0,0.00023282,3]
[340986998,1730214643099,-500.0,0.00023282,3]
[340986999,1730214643113,-500.0,0.00023282,3]
[340987000,1730214643128,-500.0,0.00023282,3]
[340987001,1730214643140,-153.0,0.00023332,2]
[340987002,1730214643151,-153.0,0.00023332,2]
[340987003,1730214643162,-153.0,0.00023332,2]
[340987004,1730214643174,-153.0,0.00023332,2]
[340987005,1730214643186,-153.0,0.00023332,2]
[340987006,1730214643198,-153.0,0.00023332,2]
[340987008,1730214643210,-210.9014947,0.0002334,2]
[340987009,1730214643221,-153.0,0.00023341,2]
[340987011,1730214643233,-153.0,0.00023342,2]
[340987013,1730214643245,-153.0,0.00023342,2]
[340987015,1730214643256,-153.0,0.00023342,2]
[340987016,1730214643266,-153.0,0.00023342,2]
[340987017,1730214643276,-153.0,0.00023342,2]
[340987018,1730214643287,-153.0,0.00023342,2]
[340987019,1730214643298,-153.0,0.00023351,2]
[340987020,1730214643310,-153.0,0.00023351,2]
[340987022,1730214643321,-153.0,0.00023351,2]
[340987023,1730214643333,-153.0,0.00023351,2]
[340987024,1730214643345,-153.0,0.00023351,2]
[340987025,1730214643357,-153.0,0.00023351,2]
[340987026,1730214643371,-153.0,0.00023361,2]
[340987027,1730214643384,-153.0,0.00023361,2]
[340987028,1730214643397,-153.0,0.00023361,2]
[340987029,1730214643409,-153.0,0.00023361,2]
[340987030,1730214643421,-153.0,0.00023361,2]
[340987031,1730214643432,-153.0,0.00023361,2]
[340987032,1730214643442,-196.966473,0.00023501,2]
[340987033,1730214643453,-173.506597,0.00023501,2]
[340987034,1730214643463,-718.07,0.00023553,3]
[340987035,1730214643475,-500.0,0.00023553,3]
[340987036,1730214643487,-500.0,0.00023553,3]
[340987037,1730214643500,-371.78680805,0.00023553,3]
[340987038,1730214643512,-500.0,0.00023553,3]
[340987039,1730214643524,-500.0,0.00023553,3]
[340987040,1730214643535,-546.0,0.00023553,3]
[340987041,1730214643546,-500.0,0.00023553,3]
[340987042,1730214643560,-500.0,0.00023553,3]
[340987043,1730214643571,-500.0,0.00023553,3]
[340987044,1730214643582,-500.0,0.00023553,3]
[340987045,1730214643595,-500.0,0.00023553,3]
[340987046,1730214643607,-7111.02,0.00023553,3]
[340987047,1730214643619,-781.5,0.00023553,3]
[340987048,1730214643631,-268.273165,0.00023554,7]
[340987049,1730214643641,-151.0,0.00023554,7]
[340987050,1730214643653,-500.0,0.00023554,3]
[340987051,1730214643665,-500.0,0.00023554,3]
[340987052,1730214643676,-500.0,0.00023554,3]
[340987053,1730214643687,-500.0,0.00023554,3]
[340987054,1730214643697,-500.0,0.00023554,3]
[340987055,1730214643709,-500.0,0.00023554,3]
[340987056,1730214643722,-500.0,0.00023554,3]
[340987057,1730214643733,-500.0,0.00023554,3]
[340987058,1730214643744,-500.0,0.00023554,3]
[340987059,1730214643755,-362.40290489,0.00023554,3]
[340987060,1730214643766,-222.39626281,0.00023554,3]
[340987061,1730214643777,-500.0,0.00023554,3]
[340987062,1730214643787,-500.0,0.00023554,3]
[340987063,1730214643797,-500.0,0.00023554,3]
[340987064,1730214643808,-500.0,0.00023554,3]
[340987065,1730214643821,-600.97,0.00023554,3]
[340987066,1730214643833,-500.0,0.00023554,3]
[340987067,1730214643844,-500.0,0.00023554,3]
[340987068,1730214643856,-500.0,0.00023554,3]
[340987069,1730214643867,-500.0,0.00023554,3]
[340987070,1730214643881,-500.0,0.00023555,3]
[340987071,1730214643893,-500.0,0.00023555,3]
[340987072,1730214643904,-500.0,0.00023555,3]
[340987073,1730214643916,-500.0,0.00023556,3]
[340987074,1730214643927,-500.0,0.00023556,3]
[340987075,1730214643939,-500.0,0.00023556,3]
[340987076,1730214643951,-408.33798233,0.00023556,3]
[340987077,1730214643963,-210.9014947,0.00023669,2]
[340987078,1730214643975,-210.9014947,0.00023669,2]
[340987079,1730214643986,-210.9014947,0.00023669,2]
[340987080,1730214643997,-210.9014947,0.00023669,2]
[340987081,1730214644010,-210.9014947,0.00023669,2]
[340987082,1730214644022,-210.9014947,0.00023669,2]
[340987083,1730214644034,-210.9014947,0.00023669,2]
[340987084,1730214644044,-210.9014947,0.00023669,2]
[340987085,1730214644055,-210.9014947,0.00023669,2]
[340987086,1730214644066,-210.9014947,0.00023669,2]
[340987087,1730214644077,-151.0,0.00023703,2]
[340987088,1730214644088,-358.60955977,0.00023816,2]
[340987089,1730214644100,-718.07,0.00023827,3]
[340987090,1730214644112,-500.0,0.00023827,3]
[340987093,1730214644125,-177.42005906,0.00023827,3]
[340987095,1730214644136,-500.0,0.00023827,3]
[340987097,1730214644148,-500.0,0.00023827,3]
[340987099,1730214644160,-546.0,0.00023827,3]
[340987102,1730214644171,-500.0,0.00023827,3]
[340987104,1730214644183,-500.0,0.00023827,3]
[340987105,1730214644195,-500.0,0.00023827,3]
[340987106,1730214644207,-500.0,0.00023827,3]
[340987107,1730214644219,-500.0,0.00023827,3]
[340987108,1730214644231,-7111.02,0.00023827,3]
[340987109,1730214644242,-781.5,0.00023827,3]
[340987110,1730214644255,-436.29577691,0.00023828,3]
[340987111,1730214644266,-500.0,0.00023828,3]
[340987112,1730214644277,-500.0,0.00023828,3]
[340987113,1730214644289,-500.0,0.00023828,3]
[340987114,1730214644300,-500.0,0.00023828,3]
[340987115,1730214644313,-500.0,0.00023828,3]
[340987117,1730214644325,-500.0,0.00023828,3]
[340987118,1730214644336,-500.0,0.00023828,3]
[340987119,1730214644346,-500.0,0.00023828,3]
[340987120,1730214644359,-500.0,0.00023828,3]
[340987121,1730214644370,-500.0,0.00023828,3]
[340987124,1730214644514,-500.0,0.00023828,3]
[340987125,1730214644529,-500.0,0.00023828,3]
[340987126,1730214644539,-600.97,0.00023828,3]
[340987127,1730214644549,-500.0,0.00023828,3]
[340987128,1730214644559,-500.0,0.00023828,3]
[340987129,1730214644569,-500.0,0.00023828,3]
[340987130,1730214644579,-500.0,0.00023828,3]
[340987131,1730214644588,-500.0,0.00023829,3]
[340987132,1730214644598,-500.0,0.00023829,3]
[340987133,1730214644606,-500.0,0.00023829,3]
[340987134,1730214644616,-1988.45190755,0.0002383,2]
[340987135,1730214644626,-500.0,0.0002383,3]
[340987136,1730214644635,-500.0,0.0002383,3]
[340987137,1730214644644,-500.0,0.0002383,3]
[340987138,1730214644653,-184.61558816,0.00023833,3]
[340987139,1730214644662,-200.0,0.00023834,3]
[340987140,1730214644671,-500.0,0.00023834,3]
[340987141,1730214644682,-151.0,0.00023894,2]
[340987142,1730214644691,-306.0,0.00023945,2]
[340987143,1730214644701,-153.0,0.00023945,2]
[340987144,1730214644715,-306.0,0.00023945,2]
[340987145,1730214644725,-432.83863454,0.00023973,2]
[340987146,1730214644735,-500.0,0.00023973,2]
[340987147,1730214644744,-500.0,0.00023973,2]
[340987148,1730214644755,-500.0,0.00023973,2]
[340987149,1730214644765,-500.0,0.00023973,2]
[340987150,1730214644775,-500.0,0.00023973,2]
[340987151,1730214644787,-500.0,0.00023973,2]
[340987152,1730214644798,-500.0,0.00023973,2]
[340987153,1730214644809,-500.0,0.00023973,2]
[340987154,1730214644819,-183.98228965,0.00023985,2]
[340987155,1730214644830,-94315.25093721,0.00024,2]
[340987158,1730214646581,-500.0,0.00022183,3]
[340987159,1730214646591,-500.0,0.00022184,3]
[340987160,1730214646600,-500.0,0.00022457,3]
[340987161,1730214646609,-500.0,0.00022731,3]
[340987162,1730214646618,-500.0,0.00023005,3]
[340987163,1730214646629,-500.0,0.00023279,3]
[340987165,1730214646639,-500.0,0.00023553,3]
[340987167,1730214646649,-500.0,0.00023827,3]
[340987169,1730214646660,-8618.17289404,0.00024,2]
[340988026,1730215530635,1474.12,0.00034957,120]
[340988027,1730215542289,-174.394949,0.00021342,2]
[340988028,1730215542311,-221.0,0.00022,2]
[340988029,1730215542333,-300.0,0.00022172,2]
[340988030,1730215542353,-95.30597337,0.00022173,2]
[340988032,1730215611545,-3006.3950132,0.00022082,2]
[340988033,1730215611574,-300.0,0.00022172,2]
[340988034,1730215611601,-404.69402663,0.00022173,2]
[340988035,1730215611626,-501.51344911,0.00022173,2]
[340988036,1730215611653,-500.0,0.00022173,2]
[340988037,1730215611681,-501.27048359,0.00022173,2]
[340988038,1730215611709,-262.92033605,0.00022173,2]
[340988039,1730215611736,-500.0,0.00022173,2]
[340988040,1730215611763,-500.0,0.00022173,2]
[340988041,1730215611793,-162.07806198,0.00022173,2]
[340988042,1730215611821,-500.0,0.00022173,2]
[340988043,1730215611853,-500.0,0.00022173,2]
[340988044,1730215611880,-500.0,0.00022173,2]
[340988045,1730215611906,-500.55092091,0.00022181,3]
[340988046,1730215611933,-360.57770853,0.00022181,3]
[340988047,1730215640119,-300.0,0.0002218,2]
[340988048,1730215640142,-139.42229147,0.00022181,3]
[340988049,1730215640165,-123.43691294,0.00022181,3]
[340988133,1730215835789,-2630.59563655,0.00022082,2]
[340988135,1730215835800,-300.0,0.00022172,2]
[340988136,1730215835810,-500.0,0.00022173,2]
[340988138,1730215835819,-500.62371968,0.00022173,2]
[340988140,1730215835829,-500.0,0.00022173,2]
[340988142,1730215835838,-500.0,0.00022173,2]
[340988143,1730215835847,-554.49841929,0.00022173,2]
[340988144,1730215835857,-500.0,0.00022173,2]
[340988145,1730215835866,-500.0,0.00022173,2]
[340988146,1730215835876,-352.88515397,0.00022173,2]
[340988147,1730215835885,-500.0,0.00022173,2]
[340988148,1730215835894,-500.0,0.00022173,2]
[340988149,1730215835904,-500.0,0.00022181,3]
[340988150,1730215835913,-500.0,0.00022181,3]
[340988151,1730215835924,-500.0,0.00022181,3]
[340988152,1730215835935,-500.0,0.00022181,3]
[340988153,1730215835945,-500.0,0.00022181,3]
[340988154,1730215835956,-500.0,0.00022181,3]
[340988155,1730215835967,-500.0,0.00022181,3]
[340988156,1730215835976,-500.0,0.00022181,3]
[340988157,1730215835986,-500.0,0.00022181,3]
[340988158,1730215835995,-500.0,0.00022181,3]
[340988159,1730215836005,-500.0,0.00022181,3]
[340988160,1730215836015,-500.0,0.00022181,3]
[340988161,1730215836024,-6222.14,0.00022181,3]
[340988162,1730215836034,-500.0,0.00022181,2]
[340988163,1730215836044,-500.0,0.00022181,2]
[340988164,1730215836054,-264.36913577,0.00022181,2]
[340988165,1730215836063,-628.31,0.00022181,3]
[340988166,1730215836073,-226.54135901,0.00022182,2]
[340988167,1730215836082,-500.0,0.00022182,3]
[340988168,1730215836091,-500.0,0.00022182,3]
[340988169,1730215836100,-500.0,0.00022182,3]
[340988170,1730215836111,-500.0,0.00022182,3]
[340988171,1730215836121,-1000.0,0.00022182,5]
[340988172,1730215836131,-500.0,0.00022182,3]
[340988173,1730215836141,-500.0,0.00022182,3]
[340988174,1730215836152,-500.0,0.00022182,3]
[340988175,1730215836161,-500.0,0.00022182,3]
[340988176,1730215836170,-500.0,0.00022182,3]
[340988177,1730215836179,-500.0,0.00022182,3]
[340988178,1730215836189,-500.0,0.00022182,3]
[340988179,1730215836198,-500.0,0.00022182,3]
[340988180,1730215836207,-500.0,0.00022182,3]
[340988181,1730215836216,-500.0,0.00022182,3]
[340988182,1730215836225,-500.0,0.00022182,3]
[340988183,1730215836235,-500.0,0.00022182,3]
[340988184,1730215836244,-500.0,0.00022182,3]
[340988185,1730215836254,-500.0,0.00022182,3]
[340988186,1730215836264,-500.0,0.00022182,3]
[340988187,1730215836274,-500.0,0.00022182,3]
[340988188,1730215836283,-500.0,0.00022182,3]
[340988189,1730215836292,-500.0,0.00022182,3]
[340988190,1730215836302,-500.0,0.00022182,3]
[340988191,1730215836312,-500.0,0.00022182,3]
[340988192,1730215836324,-500.0,0.00022182,3]
[340988193,1730215836334,-500.0,0.00022182,3]
[340988194,1730215836344,-500.0,0.00022182,3]
[340988195,1730215836354,-405.31693232,0.00022182,3]
[340988196,1730215836365,-500.0,0.00022182,3]
[340988197,1730215836375,-652.66,0.00022182,3]
[340988198,1730215836384,-500.0,0.00022182,3]
[340988199,1730215836393,-500.0,0.00022182,3]
[340988200,1730215836405,-500.0,0.00022182,3]
[340988201,1730215836417,-500.0,0.00022182,3]
[340988202,1730215836571,-500.0,0.00022182,3]
[340988203,1730215836581,-570.59366314,0.00022182,3]
[340988204,1730215836590,-500.0,0.00022182,3]
[340988205,1730215836599,-525.84,0.00022182,3]
[340988206,1730215836609,-500.0,0.00022182,3]
[340988207,1730215836619,-500.0,0.00022182,3]
[340988208,1730215836628,-324.59531888,0.00022182,3]
[340988209,1730215836638,-500.0,0.00022182,3]
[340988210,1730215836658,-500.0,0.00022182,3]
[340988211,1730215836670,-500.0,0.00022182,3]
[340988212,1730215836680,-500.0,0.00022182,3]
[340988213,1730215836695,-500.0,0.00022182,3]
[340988214,1730215836704,-500.0,0.00022182,3]
[340988215,1730215836714,-500.0,0.00022182,3]
[340988216,1730215836725,-500.0,0.00022182,3]
[340988217,1730215836734,-500.0,0.00022182,3]
[340988218,1730215836744,-400.06501939,0.00022182,3]
[340988219,1730215836757,-335.73780634,0.00022182,3]
[340988220,1730215836767,-500.0,0.00022182,3]
[340988221,1730215836777,-500.0,0.00022182,3]
[340988222,1730215836787,-500.0,0.00022182,3]
[340988223,1730215836797,-500.0,0.00022182,3]
[340988224,1730215836807,-555.7,0.00022183,3]
[340988225,1730215836819,-200.0,0.00022183,3]
[340988226,1730215836829,-409.6990548,0.00022183,2]
[340988227,1730215836839,-500.0,0.00022183,3]
[340988228,1730215836849,-500.0,0.00022183,3]
[340988229,1730215836860,-500.0,0.00022183,3]
[340988230,1730215836872,-503.0004923,0.00022183,3]
[340988231,1730215836884,-500.0,0.00022183,3]
[340988232,1730215836895,-500.0,0.00022183,3]
[340988233,1730215836905,-222.39626281,0.00022183,3]
[340988234,1730215836915,-500.0,0.00022183,3]
[340988235,1730215836927,-550.89,0.00022183,3]
[340988236,1730215836937,-500.0,0.00022183,3]
[340988237,1730215836949,-500.0,0.00022183,3]
[340988238,1730215836959,-502.29468667,0.00022183,3]
[340988239,1730215836969,-500.0,0.00022183,3]
[340988240,1730215836979,-500.0,0.00022183,3]
[340988241,1730215836989,-500.0,0.00022183,3]
[340988242,1730215837000,-500.0,0.00022183,3]
[340988243,1730215837010,-500.0,0.00022183,3]
[340988244,1730215837020,-500.0,0.00022183,3]
[340988245,1730215837032,-500.0,0.00022183,3]
[340988246,1730215837042,-548.79298828,0.00022183,3]
[340988247,1730215837054,-500.0,0.00022183,3]
[340988248,1730215837064,-500.0,0.00022183,3]
[340988249,1730215837074,-500.0,0.00022183,3]
[340988250,1730215837083,-500.0,0.00022183,3]
[340988251,1730215837093,-500.0,0.00022183,3]
[340988252,1730215837103,-500.0,0.00022183,3]
[340988253,1730215837113,-500.0,0.00022183,3]
[340988254,1730215837123,-500.0,0.00022183,3]
[340988255,1730215837132,-500.0,0.00022183,3]
[340988256,1730215837142,-500.0,0.00022183,3]
[340988257,1730215837151,-500.0,0.00022183,3]
[340988258,1730215837161,-505.30565573,0.00022183,3]
[340988259,1730215837171,-500.0,0.00022183,3]
[340988260,1730215837180,-500.0,0.00022183,3]
[340988261,1730215837190,-500.0,0.00022183,3]
[340988262,1730215837199,-500.0,0.00022183,3]
[340988263,1730215837208,-500.0,0.00022183,3]
[340988264,1730215837218,-500.0,0.00022183,3]
[340988265,1730215837228,-500.0,0.00022183,3]
[340988266,1730215837237,-500.0,0.00022183,3]
[340988267,1730215837247,-502.59242908,0.00022183,3]
[340988268,1730215837258,-500.0,0.00022183,3]
[340988269,1730215837272,-500.0,0.00022183,3]
[340988270,1730215837282,-500.0,0.00022183,3]
[340988271,1730215837292,-518.45153168,0.00022183,3]
[340988272,1730215837302,-500.0,0.00022183,3]
[340988273,1730215837313,-500.0,0.00022183,3]
[340988275,1730215837325,-500.0,0.00022183,3]
[340988276,1730215837336,-500.0,0.00022184,3]
[340988277,1730215837346,-408.33798233,0.00022184,3]
[340988278,1730215837356,-581.96827256,0.00022184,3]
[340988279,1730215837367,-500.0,0.00022184,3]
[340988282,1730215837377,-500.0,0.00022184,3]
[340988284,1730215837387,-221.0,0.00022192,2]
[340988285,1730215837398,-183.98228965,0.00022357,2]
[340988287,1730215837407,-500.0,0.00022455,3]
[340988289,1730215837417,-500.0,0.00022455,3]
[340988291,1730215837427,-500.0,0.00022455,3]
[340988293,1730215837437,-500.0,0.00022455,3]
[340988295,1730215837446,-500.0,0.00022455,3]
[340988296,1730215837456,-500.0,0.00022455,3]
[340988297,1730215837466,-500.0,0.00022455,3]
[340988298,1730215837475,-500.0,0.00022455,3]
[340988299,1730215837485,-500.0,0.00022455,3]
[340988300,1730215837495,-6222.14,0.00022455,3]
[340988301,1730215837506,-628.31,0.00022455,3]
[340988302,1730215837516,-500.0,0.00022456,3]
[340988303,1730215837526,-1000.0,0.00022456,5]
[340988304,1730215837536,-500.0,0.00022456,3]
[340988305,1730215837546,-500.0,0.00022456,3]
[340988306,1730215837556,-500.0,0.00022456,3]
[340988307,1730215837566,-500.0,0.00022456,3]
[340988308,1730215837576,-263.26306768,0.00022456,3]
[340988309,1730215837586,-500.0,0.00022456,3]
[340988310,1730215837596,-500.0,0.00022456,3]
[340988311,1730215837605,-500.0,0.00022456,3]
[340988312,1730215837615,-500.0,0.00022456,3]
[340988313,1730215837625,-362.40290489,0.00022456,3]
[340988314,1730215837634,-500.0,0.00022456,3]
[340988315,1730215837643,-652.66,0.00022456,3]
[340988316,1730215837655,-500.0,0.00022456,3]
[340988317,1730215837664,-500.0,0.00022456,3]
[340988318,1730215837674,-500.0,0.00022456,3]
[340988319,1730215837683,-525.84,0.00022456,3]
[340988320,1730215837693,-500.0,0.00022456,3]
[340988321,1730215837703,-500.0,0.00022456,3]
[340988322,1730215837713,-500.0,0.00022456,3]
[340988323,1730215837727,-500.0,0.00022456,3]
[340988324,1730215837739,-500.0,0.00022457,3]
[340988325,1730215837752,-500.0,0.00022457,3]
[340988326,1730215837765,-500.0,0.00022457,3]
[340988327,1730215837774,-500.0,0.00022457,3]
[340988328,1730215837784,-500.0,0.00022457,3]
[340988329,1730215837794,-500.0,0.00022457,3]
[340988330,1730215837805,-500.0,0.00022457,3]
[340988332,1730215837815,-500.0,0.00022457,3]
[340988334,1730215837825,-500.0,0.00022457,3]
[340988336,1730215837835,-500.0,0.00022457,3]
[340988338,1730215837845,-500.0,0.00022458,2]
[340988340,1730215837855,-163.82880843,0.00022472,2]
[340988341,1730215837867,-500.0,0.00022473,2]
[340988342,1730215837878,-500.82744298,0.00022473,2]
[340988343,1730215837889,-500.0,0.00022729,3]
[340988344,1730215837899,-371.78680805,0.00022729,3]
[340988345,1730215837910,-500.0,0.00022729,3]
[340988346,1730215837921,-500.0,0.00022729,3]
[340988347,1730215837931,-500.0,0.00022729,3]
[340988348,1730215837942,-500.0,0.00022729,3]
[340988349,1730215837952,-500.0,0.00022729,3]
[340988350,1730215837962,-500.0,0.00022729,3]
[340988351,1730215837973,-500.0,0.00022729,3]
[340988352,1730215837982,-6222.14,0.00022729,3]
[340988353,1730215837992,-628.31,0.00022729,3]
[340988354,1730215838004,-500.0,0.0002273,3]
[340988355,1730215838014,-1001.13939873,0.0002273,5]
[340988356,1730215838024,-436.29577691,0.0002273,3]
[340988357,1730215838034,-500.0,0.0002273,3]
[340988358,1730215838044,-500.0,0.0002273,3]
[340988359,1730215838053,-500.0,0.0002273,3]
[340988360,1730215838063,-500.0,0.0002273,3]
[340988361,1730215838073,-500.0,0.0002273,3]
[340988362,1730215838083,-500.0,0.0002273,3]
[340988363,1730215838094,-500.0,0.0002273,3]
[340988364,1730215838104,-652.66,0.0002273,3]
[340988365,1730215838114,-177.42005906,0.0002273,3]
[340988366,1730215838124,-500.0,0.0002273,3]
[340988367,1730215838134,-500.0,0.0002273,3]
[340988368,1730215838144,-525.84,0.0002273,3]
[340988369,1730215838154,-500.0,0.0002273,3]
[340988370,1730215838164,-500.0,0.0002273,3]
[340988371,1730215838174,-500.0,0.0002273,3]
[340988372,1730215838184,-500.0,0.0002273,3]
[340988373,1730215838194,-500.0,0.00022731,3]
[340988374,1730215838203,-623.29391067,0.00022731,3]
[340988375,1730215838213,-500.0,0.00022731,3]
[340988376,1730215838223,-500.0,0.00022731,3]
[340988377,1730215838233,-500.0,0.00022731,3]
[340988378,1730215838242,-500.0,0.00022731,3]
[340988379,1730215838254,-323.95314724,0.00022731,3]
[340988380,1730215838264,-500.0,0.00022731,3]
[340988382,1730215838274,-500.0,0.00022731,3]
[340988383,1730215838284,-210.9014947,0.00022847,2]
[340988384,1730215838295,-210.9014947,0.00022847,2]
[340988385,1730215838304,-210.9014947,0.00022847,2]
[340988386,1730215838314,-210.9014947,0.00022847,2]
[340988387,1730215838328,-500.0,0.00023003,3]
[340988388,1730215838339,-500.0,0.00023003,3]
[340988389,1730215838349,-500.0,0.00023003,3]
[340988390,1730215838358,-500.0,0.00023003,3]
[340988391,1730215838370,-500.0,0.00023003,3]
[340988392,1730215838379,-500.0,0.00023003,3]
[340988393,1730215838389,-500.0,0.00023003,3]
[340988394,1730215838400,-500.0,0.00023003,3]
[340988395,1730215838410,-6222.14,0.00023003,3]
[340988396,1730215838420,-500.0,0.00023004,3]
[340988397,1730215838430,-486.58320218,0.00023004,3]
[340988398,1730215838440,-202.12973762,0.00023004,3]
[340988399,1730215838452,-500.0,0.00023004,3]
[340988400,1730215838462,-500.0,0.00023004,3]
[340988401,1730215838471,-500.0,0.00023004,3]
[340988402,1730215838481,-500.0,0.00023004,3]
[340988403,1730215838491,-500.0,0.00023004,3]
[340988404,1730215838502,-652.66,0.00023004,3]
[340988405,1730215838511,-500.0,0.00023004,3]
[340988406,1730215838520,-500.0,0.00023004,3]
[340988407,1730215838530,-525.84,0.00023004,3]
[340988408,1730215838539,-500.0,0.00023004,3]
[340988409,1730215838550,-500.0,0.00023004,3]
[340988410,1730215838560,-500.0,0.00023004,3]
[340988411,1730215838569,-500.0,0.00023004,3]
[340988412,1730215838579,-503.07174045,0.00023005,3]
[340988413,1730215838588,-580.45756866,0.00023005,3]
[340988414,1730215838597,-182.82,0.00023005,3]
[340988415,1730215838607,-484.38076051,0.00023005,3]
[340988416,1730215838616,-500.0,0.00023005,3]
[340988417,1730215838626,-500.0,0.00023005,3]
[340988418,1730215838636,-500.0,0.00023005,3]
[340988419,1730215838645,-221.0,0.00023014,2]
[340988420,1730215838656,-214.999,0.0002316,2]
[340988421,1730215838666,-153.0,0.00023234,2]
[340988422,1730215838676,-153.0,0.00023237,2]
[340988423,1730215838685,-153.0,0.00023237,2]
[340988424,1730215838694,-153.0,0.00023237,2]
[340988425,1730215838704,-153.0,0.00023237,2]
[340988426,1730215838714,-153.0,0.00023237,2]
[340988427,1730215838724,-153.0,0.00023237,2]
[340988428,1730215838734,-153.0,0.00023247,2]
[340988429,1730215838745,-153.0,0.00023247,2]
[340988430,1730215838758,-153.0,0.00023247,2]
[340988431,1730215838767,-153.0,0.00023247,2]
[340988432,1730215838777,-153.0,0.00023247,2]
[340988433,1730215838786,-153.0,0.00023247,2]
[340988434,1730215838796,-153.0,0.00023256,2]
[340988435,1730215838806,-153.0,0.00023256,2]